lending/lending_fUSD_20240510
["ID","MTS","AMOUNT","RATE_DAILY","PERIOD"]
[326761293,1715328643656,-197.73,0.000212,2]
[326761294,1715328643666,-800.0,0.00021836,2]
[326761295,1715328643675,-288.0,0.00021865,2]
[326761296,1715328643685,-2295.0,0.00021865,2]
[326761297,1715328643694,-800.0,0.00021945,2]
[326761298,1715328643704,-196.43,0.00021998,2]
[326761299,1715328643713,-196.43,0.00022004,2]
[326761300,1715328643722,-196.43,0.0002201,2]
[326761301,1715328643731,-196.43,0.00022016,2]
[326761302,1715328643741,-196.43,0.00022022,2]
[326761303,1715328643751,-196.43,0.00022027,2]
[326761304,1715328643760,-196.43,0.00022033,2]
[326761305,1715328643770,-196.43,0.00022039,2]
[326761306,1715328643780,-196.43,0.00022045,2]
[326761307,1715328643790,-196.43,0.0002205,2]
[326761308,1715328643800,-196.43,0.00022056,2]
[326761309,1715328643808,-196.43,0.00022062,2]
[326761310,1715328643818,-196.43,0.00022068,2]
[326761311,1715328643827,-196.43,0.00022074,2]
[326761312,1715328643842,-196.43,0.00022079,2]
[326761313,1715328643852,-196.43,0.00022085,2]
[326761314,1715328643862,-196.43,0.00022091,2]
[326761315,1715328643871,-196.43,0.00022097,2]
[326761316,1715328643882,-196.43,0.00022103,2]
[326761317,1715328643891,-196.43,0.00022108,2]
[326761318,1715328643900,-1089.22239767,0.00022268,2]
[326761319,1715328643911,-1027.0,0.000237,2]
[326761320,1715328643920,-1000.0,0.000238,2]
[326761321,1715328643931,-1093.0,0.000239,2]
[326761322,1715328643940,-1089.22239767,0.00024142,2]
[326761323,1715328643950,-229.69883098,0.00024355,2]
[326761324,1715328643960,-197.73,0.000244,2]
[326761325,1715328643969,-27457.15732316,0.00024535,2]
[326761326,1715328643978,-176.81,0.00024658,2]
[326761327,1715328643988,-288.0,0.00024865,2]
[326761328,1715328643998,-2295.0,0.00024865,2]
[326761329,1715328644008,-152.0,0.00024893,3]
[326761330,1715328644018,-1777.09589962,0.00025,2]
[326761331,1715328644028,-300.0,0.00025,2]
[326761332,1715328644037,-12641.25830243,0.00025,2]
[326761333,1715328644047,-158.31,0.00025379,2]
[326761334,1715328644056,-1054.65,0.00025425,2]
[326761335,1715328644066,-426.82,0.00025425,2]
[326761336,1715328644075,-702.28,0.00025425,2]
[326761337,1715328644085,-151.93,0.00025425,2]
[326761338,1715328644094,-150.0,0.00025425,2]
[326761339,1715328644104,-150.0,0.00025425,2]
[326761340,1715328644113,-167.43,0.00025425,2]
[326761341,1715328644124,-163.24,0.00025425,2]
[326761342,1715328644133,-163.24,0.00025425,2]
[326761343,1715328644142,-7063.61067608,0.00025539,2]
[326761344,1715328644152,-421.0,0.00025562,2]
[326761345,1715328644162,-1009.281128,0.000256,2]
[326761346,1715328644171,-303.64,0.00025753,2]
[326761347,1715328644181,-272.33087376,0.00025847,3]
[326761348,1715328644190,-686.8984,0.00025978,2]
[326761349,1715328644200,-167.77315298,0.00026,2]
[326761350,1715328644209,-150.0,0.00026,4]
[326761351,1715328644219,-1089.22239767,0.00026016,2]
[326761352,1715328644228,-1667.565783,0.000261,2]
[326761353,1715328644237,-1000.0,0.000261,2]
[326761354,1715328644246,-18091.5300623,0.00026107,2]
[326761355,1715328644256,-2755.4029161,0.00026107,2]
[326761356,1715328644265,-150.01,0.00026108,2]
[326761357,1715328644275,-5861.29139766,0.00026108,2]
[326761358,1715328644284,-6432.85609649,0.00026109,2]
[326761359,1715328644294,-8221.9958449,0.00026125,2]
[326761360,1715328644303,-675.0214301,0.00026143,2]
[326761361,1715328644313,-35274.0379113,0.00026143,2]
[326761362,1715328644322,-369.0,0.00026161,2]
[326761363,1715328644332,-892.0,0.000262,2]
[326761364,1715328644341,-261.4,0.000262,2]
[326761365,1715328644350,-883.0,0.000262,2]
[326761366,1715328644534,-200.0,0.00026342,2]
[326761367,1715328644549,-197.73,0.000264,2]
[326761368,1715328644559,-9650.24,0.00026451,2]
[326761369,1715328644568,-150.0,0.00026456,2]
[326761370,1715328644577,-216.75000991,0.00026498,7]
[326761371,1715328644586,-150.0,0.000265,5]
[326761372,1715328644596,-868.43,0.00026575,2]
[326761373,1715328644605,-414.93,0.00026575,2]
[326761374,1715328644615,-868.43,0.00026575,2]
[326761375,1715328644626,-414.93,0.00026575,2]
[326761376,1715328644635,-414.93,0.00026575,2]
[326761377,1715328644644,-868.43,0.00026575,2]
[326761378,1715328644654,-868.43,0.00026575,2]
[326761379,1715328644663,-868.43,0.00026575,2]
[326761380,1715328644672,-414.93,0.00026575,2]
[326761381,1715328644681,-868.43,0.00026575,2]
[326761382,1715328644690,-414.93,0.00026575,2]
[326761383,1715328644699,-868.43,0.00026575,2]
[326761384,1715328644709,-868.43,0.00026575,2]
[326761385,1715328644718,-868.43,0.00026575,2]
[326761386,1715328644727,-414.93,0.00026575,2]
[326761387,1715328644737,-868.43,0.00026575,2]
[326761388,1715328644746,-414.93,0.00026575,2]
[326761389,1715328644755,-414.93,0.00026575,2]
[326761390,1715328644765,-1100.0,0.000267,9]
[326761391,1715328644774,-155.31561024,0.0002673,2]
[326761392,1715328644784,-199.877,0.00026744,2]
[326761393,1715328644794,-1042.70580494,0.00026744,2]
[326761394,1715328644803,-5559.03748487,0.00026744,2]
[326761395,1715328644812,-28761.12688069,0.00026744,2]
[326761396,1715328644821,-181.41229919,0.00026746,2]
[326761397,1715328644832,-416.73901418,0.00026746,2]
[326761398,1715328644843,-324.8317823,0.00026746,2]
[326761399,1715328644853,-463.67887962,0.00026746,2]
[326761400,1715328644862,-200.0,0.00026783,2]
[326761401,1715328644873,-500.0,0.00026783,2]
[326761402,1715328644885,-200.0,0.00026784,2]
[326761403,1715328644894,-1000.0,0.00026784,2]
[326761404,1715328644904,-500.0,0.00026784,2]
[326761405,1715328644915,-500.0,0.00026784,2]
[326761406,1715328644924,-200.0,0.00026784,2]
[326761407,1715328644934,-1400.0,0.000268,9]
[326761408,1715328644943,-1259.404,0.00026844,2]
[326761409,1715328644952,-208.85153682,0.00026844,2]
[326761410,1715328644961,-316.44060217,0.00026844,2]
[326761411,1715328644970,-262.4977061,0.00026844,2]
[326761412,1715328644980,-282.1344729,0.00026844,2]
[326761413,1715328644990,-288.56508134,0.00026844,2]
[326761414,1715328644999,-726.23771159,0.00026844,2]
[326761415,1715328645009,-1605.77398069,0.00026844,2]
[326761416,1715328645019,-788.6775476,0.00026844,2]
[326761417,1715328645028,-158.26245048,0.00026844,2]
[326761418,1715328645037,-500.0,0.00026844,2]
[326761419,1715328645046,-500.0,0.00026844,2]
[326761420,1715328645055,-500.0,0.00026844,2]
[326761421,1715328645064,-500.0,0.00026844,2]
[326761422,1715328645074,-500.0,0.00026844,2]
[326761423,1715328645083,-500.0,0.00026844,2]
[326761424,1715328645092,-500.0,0.00026844,2]
[326761425,1715328645101,-500.0,0.00026844,2]
[326761426,1715328645110,-500.0,0.00026844,2]
[326761427,1715328645120,-500.0,0.00026844,2]
[326761428,1715328645129,-500.0,0.00026844,2]
[326761429,1715328645138,-500.0,0.00026844,2]
[326761430,1715328645148,-500.0,0.00026844,2]
[326761431,1715328645157,-500.0,0.00026844,2]
[326761432,1715328645166,-500.0,0.00026844,2]
[326761433,1715328645176,-262.78286527,0.00026845,2]
[326761434,1715328645185,-1225.84618609,0.00026845,2]
[326761435,1715328645195,-863.82675602,0.00026845,2]
[326761436,1715328645205,-500341.40462509,0.00026846,2]
[326761437,1715328645230,-308.96416936,0.00026846,2]
[326761438,1715328645242,-161159.46910159,0.00026846,2]
[326761439,1715328645251,-151.0,0.00026846,7]
[326761440,1715328645260,-151.267718,0.00026846,7]
[326761441,1715328645270,-151.0,0.00026846,7]
[326761442,1715328645279,-151.0,0.00026846,7]
[326761443,1715328645288,-175.956204,0.00026846,7]
[326761444,1715328645297,-151.0,0.00026846,7]
[326761445,1715328645306,-151.0,0.00026846,7]
[326761446,1715328645316,-151.0,0.00026846,7]
[326761447,1715328645325,-151.0,0.00026846,7]
[326761448,1715328645335,-151.0,0.00026846,7]
[326761449,1715328645344,-151.0,0.00026846,7]
[326761450,1715328645353,-151.0,0.00026846,7]
[326761451,1715328645362,-220.491499,0.00026846,7]
[326761452,1715328645372,-220.491499,0.00026846,7]
[326761453,1715328645382,-151.0,0.00026846,7]
[326761454,1715328645391,-151.0,0.00026846,7]
[326761455,1715328645400,-151.0,0.00026846,7]
[326761456,1715328645409,-158.435275,0.00026846,7]
[326761457,1715328645418,-151.0,0.00026846,7]
[326761458,1715328645427,-151.0,0.00026846,7]
[326761459,1715328645437,-151.0,0.00026846,7]
[326761460,1715328645448,-151.0,0.00026846,7]
[326761461,1715328645458,-151.0,0.00026846,7]
[326761462,1715328645467,-151.0,0.00026846,7]
[326761463,1715328645476,-357.990434,0.00026846,7]
[326761464,1715328645485,-151.313007,0.00026846,7]
[326761465,1715328645496,-357.990434,0.00026846,7]
[326761466,1715328645505,-268.761842,0.00026846,7]
[326761467,1715328645515,-151.0,0.00026846,7]
[326761468,1715328645525,-263.670173,0.00026846,7]
[326761469,1715328645535,-263.670173,0.00026846,7]
[326761470,1715328645544,-151.0,0.00026846,7]
[326761471,1715328645555,-414.93,0.00026849,2]
[326761472,1715328645566,-414.93,0.00026849,2]
[326761473,1715328645575,-868.43,0.00026849,2]
[326761474,1715328645584,-868.43,0.00026849,2]
[326761475,1715328645594,-150.69,0.00026852,2]
[326761476,1715328645603,-151.0,0.00026862,7]
[326761477,1715328645612,-151.0,0.00026862,7]
[326761478,1715328645622,-377.393664,0.00026862,7]
[326761479,1715328645631,-377.393664,0.00026862,7]
[326761480,1715328645641,-151.0,0.00026862,7]
[326761481,1715328645650,-151.0,0.00026862,7]
[326761482,1715328645659,-193.734785,0.00026862,7]
[326761483,1715328645669,-175.038941,0.00026862,7]
[326761484,1715328645676,-193.734785,0.00026862,7]
[326761485,1715328645683,-175.038941,0.00026862,7]
[326761486,1715328645690,-151.0,0.00026862,7]
[326761487,1715328645698,-675.0214301,0.00026862,2]
[326761488,1715328645705,-35150.9564151,0.00026862,2]
[326761489,1715328645711,-151.0,0.00026862,7]
[326761490,1715328645718,-151.0,0.00026862,5]
[326761491,1715328645725,-151.0,0.00026862,5]
[326761492,1715328645732,-151.0,0.00026862,7]
[326761493,1715328645739,-8193.3068824,0.00026862,2]
[326761494,1715328645747,-151.0,0.00026862,7]
[326761495,1715328645755,-151.0,0.00026862,7]
[326761496,1715328645762,-164.451158,0.00026862,7]
[326761497,1715328645771,-180.782713,0.00026862,7]
[326761498,1715328645781,-180.782713,0.00026862,7]
[326761499,1715328645790,-151.0,0.00026862,7]
[326761500,1715328645800,-18154.3047884,0.00026862,2]
[326761501,1715328645809,-155.135848,0.00026862,7]
[326761502,1715328645819,-151.0,0.00026862,7]
[326761503,1715328645828,-151.0,0.00026862,7]
[326761504,1715328645842,-151.0,0.00026862,7]
[326761506,1715328645852,-159.180707,0.00026862,7]
[326761508,1715328645862,-159.180707,0.00026862,7]
[326761510,1715328645872,-151.0,0.00026862,7]
[326761512,1715328645882,-822.445768,0.00026862,7]
[326761514,1715328645892,-2764.9637251,0.00026862,2]
[326761516,1715328645901,-822.445768,0.00026862,7]
[326761518,1715328645912,-71020.49294256,0.0002688,7]
[326761520,1715328645925,-2950.0,0.0002688,7]
[326761523,1715328645949,-1461.55171556,0.0002688,7]
[326761526,1715328645961,-1913.60066779,0.0002688,7]
[326761528,1715328645973,-344.447979,0.0002688,7]
[326761535,1715328646781,-831.98,0.00026575,2]
[326761536,1715328646791,-868.43,0.00026849,2]
[326761537,1715328646800,-1729.607107,0.00026862,7]
[326761538,1715328646809,-151.0,0.00026862,7]
[326761539,1715328646818,-151.0,0.00026862,7]
[326761540,1715328646827,-417.36607694,0.0002688,7]
[326761541,1715328646842,-768.327,0.0002688,7]
[326761542,1715328646853,-607.39196673,0.0002688,7]
[326761543,1715328646864,-8571.89705668,0.0002688,7]
[326761544,1715328646876,-295.06554708,0.0002688,7]
[326761545,1715328646911,-370.26254088,0.0002688,7]
[326761546,1715328646922,-32759.16259656,0.0002688,7]
[326761547,1715328646934,-2025.46731893,0.0002688,7]
[326761548,1715328646951,-41061.20508141,0.0002688,7]
[326761549,1715328646962,-794.37868087,0.0002688,7]
[326761550,1715328646993,-250.5814632,0.0002688,7]
[326761551,1715328647009,-517.70657347,0.0002688,7]
[326761552,1715328647024,-259.04343213,0.0002688,7]
[326761553,1715328647439,-18719.48666191,0.0002688,7]
[326761554,1715328647450,-3198.81076345,0.0002688,7]
[326761555,1715328647476,-20011.0000021,0.0002688,7]
[326761556,1715328647487,-358.54738649,0.0002688,7]
[326761557,1715328647499,-590.59,0.0002688,7]
[326761558,1715328647524,-1259.95708518,0.0002688,7]
[326761559,1715328690832,5015.4383,0.000116,2]
[326761560,1715328750114,874.9438,0.000116,2]
[326761562,1715329579666,-535.13320909,0.00012897,2]
[326761563,1715329579692,-2033.88054068,0.00012898,2]
[326761564,1715329579717,-1561.71410273,0.00012899,2]
[326761572,1715329832095,-2502.25415751,0.00012899,2]
[326761573,1715329832110,-1000.0,0.000129,2]
[326761574,1715329832124,-3084.27973323,0.00012997,2]
[326761575,1715329832134,-3272.09572934,0.00012998,2]
[326761576,1715329832167,-1800.0,0.00012998,2]
[326761577,1715329832193,-659.47,0.00012998,2]
[326761578,1715329832209,-341.48088377,0.00012998,2]
[326761579,1715329832259,-11653.0382456,0.00012998,2]
[326761580,1715329832275,-1290.90309334,0.00012998,2]
[326761581,1715329832290,-833.79793316,0.00012998,2]
[326761582,1715329832304,-318.86689986,0.00012998,2]
[326761583,1715329832320,-505.38615579,0.00012998,2]
[326761584,1715329832336,-267.45221186,0.00012998,2]
[326761585,1715329832348,-202.18300369,0.00013698,5]
[326761586,1715329832368,-299.66504719,0.00013698,5]
[326761587,1715329832380,-308.807424,0.00013698,5]
[326761588,1715329832394,-189.34452512,0.00013698,5]
[326761589,1715329832405,-454.25461509,0.000153,2]
[326761590,1715329832421,-1015.83173565,0.000153,2]
[326761591,1715329832461,-253.92241788,0.000153,2]
[326761592,1715329832478,-188.99123138,0.000153,2]
[326761593,1715329832491,-522.0,0.000153,2]
[326761594,1715329832504,-495.68325654,0.00017258,2]
[326761595,1715329832514,-251.85247305,0.00017259,2]
[326761597,1715329832526,-499.99,0.00017808,2]
[326761598,1715329832537,-161.33,0.00019178,2]
[326761600,1715329832547,-158.31,0.00019178,2]
[326761603,1715329832560,-5000.0,0.00019451,2]
[326761605,1715329832572,-250.0,0.00022368,2]
[326761606,1715329832584,-500.0,0.00022419,2]
[326761607,1715329832594,-1400.56,0.00022456,2]
[326761608,1715329832606,-1141.62114348,0.00023,5]
[326761609,1715329832618,-182.88,0.00023291,2]
[326761610,1715329832630,-200.0,0.00023325,2]
[326761611,1715329832640,-430.69260202,0.00023355,2]
[326761612,1715329832654,-1080.00745947,0.00023355,2]
[326761695,1715329839183,-13622.66993851,0.00023355,2]
[326761697,1715329839194,-421.94837902,0.00023379,2]
[326761699,1715329839205,-2301.0,0.00023381,2]
[326761701,1715329839215,-2301.0,0.00023381,2]
[326761703,1715329839226,-809.0,0.00023381,2]
[326761705,1715329839236,-284.4,0.00023381,2]
[326761707,1715329839246,-1075.95464097,0.00023381,2]
[326761709,1715329839260,-63.04535903,0.00023381,2]
[326761711,1715329839271,-215.0,0.00023381,2]
[326761713,1715329839282,-724.427,0.00023381,2]
[326761715,1715329839292,-3154.0,0.00023381,2]
[326761717,1715329839303,-288.0,0.00023381,2]
[326761719,1715329839313,-1397.0,0.00023381,2]
[326761721,1715329839324,-37815.0,0.00023381,2]
[326761723,1715329839334,-5909.0,0.00023381,2]
[326761725,1715329839344,-5747.0,0.00023381,2]
[326761727,1715329839356,-2295.0,0.00023381,2]
[326761728,1715329839368,-972.0,0.00023381,2]
[326761730,1715329839378,-1062.756,0.00023381,2]
[326761732,1715329839388,-543.0,0.00023381,2]
[326761734,1715329839399,-250.0,0.00023395,2]
[326761736,1715329839409,-6050.48,0.00023395,2]
[326761738,1715329839420,-150.0,0.00023684,2]
[326761740,1715329839430,-241.25,0.00023847,2]
[326761742,1715329839445,-1000.0,0.00023988,2]
[326761744,1715329839456,-153.17,0.00024159,2]
[326761746,1715329839465,-529.0,0.000248,2]
[326761748,1715329839476,-250.0,0.00024819,2]
[326761750,1715329839487,-925.8669637,0.00025615,2]
[326761752,1715329839496,-12641.25830243,0.00025615,2]
[326761754,1715329839506,-868.43,0.00025616,2]
[326761756,1715329839518,-1058.45,0.00025616,2]
[326761758,1715329839529,-166.56,0.00025676,2]
[326761760,1715329839540,-868.43,0.0002589,2]
[326761762,1715329839550,-159.96,0.00025998,2]
[326761764,1715329839560,-149990.8,0.00026,14]
[326761766,1715329839570,-155.82,0.00026,2]
[326761768,1715329839581,-890.00232325,0.00026008,2]
[326761770,1715329839591,-158.31,0.00026108,2]
[326761772,1715329839602,-202.570383,0.00026274,2]
[326761774,1715329839614,-1036.07422083,0.00026342,2]
[326761776,1715329839625,-1011.15098718,0.00026342,2]
[326761778,1715329839635,-288.0,0.00026381,2]
[326761780,1715329839645,-6590.552,0.00026381,2]
[326761781,1715329839656,-5905.0,0.00026381,2]
[326761782,1715329839666,-3122.855,0.00026381,2]
[326761783,1715329839676,-936.212,0.00026381,2]
[326761784,1715329839686,-890.00232322,0.00026481,2]
[326761785,1715329839696,-150.0,0.000265,5]
[326761786,1715329839707,-1000.0,0.000265,2]
[326761787,1715329839717,-467.73944,0.0002659,2]
[326761788,1715329839727,-249.77399819,0.00026593,3]
[326761789,1715329839737,-200.0,0.00026647,2]
[326761790,1715329839748,-500.0,0.00026647,2]
[326761791,1715329839757,-200.0,0.00026647,2]
[326761792,1715329839767,-1000.0,0.00026728,2]
[326761793,1715329839778,-1057.1087,0.00026728,2]
[326761794,1715329839787,-1562.45443903,0.00026743,2]
[326761795,1715329839798,-155.0,0.00026778,2]
[326761796,1715329839808,-26085.0662,0.0002678,2]
[326761797,1715329839818,-100000.0,0.0002678,2]
[326761798,1715329839828,-7500.0,0.0002678,2]
[326761799,1715329839838,-7234.63914681,0.000268,2]
[326761800,1715329839848,-3502.08126514,0.00026807,2]
[326761801,1715329839860,-800.0,0.00026849,2]
[326761802,1715329839870,-800.0,0.00026849,2]
[326761803,1715329839880,-150.01,0.00026861,2]
[326761804,1715329839892,-5861.29139766,0.00026861,2]
[326761805,1715329839902,-155.91786055,0.00026878,2]
[326761806,1715329839912,-282.1344729,0.00026878,2]
[326761807,1715329839922,-2771.19491311,0.00026878,2]
[326761808,1715329839931,-379.88806869,0.00026878,2]
[326761809,1715329839941,-811.52822234,0.00026878,2]
[326761810,1715329839952,-424.74419736,0.00026878,2]
[326761811,1715329839962,-495.98178989,0.00026878,2]
[326761812,1715329839972,-365.29052977,0.00026878,2]
[326761813,1715329839982,-180.80691939,0.00026878,2]
[326761814,1715329839992,-255.23688186,0.00026878,2]
[326761815,1715329840002,-427.03437959,0.00026878,2]
[326761816,1715329840012,-156.41396986,0.00026878,2]
[326761817,1715329840023,-316.7534337,0.00026878,2]
[326761818,1715329840033,-477.95335942,0.00026878,2]
[326761819,1715329840043,-3076.41458232,0.00026878,2]
[326761820,1715329840052,-714.57706577,0.00026878,2]
[326761821,1715329840062,-512.43176782,0.00026878,2]
[326761822,1715329840072,-8359.13953205,0.00026879,2]
[326761823,1715329840083,-274.36681572,0.00026879,10]
[326761824,1715329840093,-155.16452962,0.00026879,2]
[326761825,1715329840105,-258.90916172,0.00026879,2]
[326761826,1715329840114,-2000.0,0.0002688,2]
[326761827,1715329840124,-200.0,0.0002688,2]
[326761828,1715329840133,-361547.52517173,0.0002688,6]
[326761829,1715329840143,-776.5288518,0.00026882,2]
[326761830,1715329840152,-3619.61427209,0.00026882,2]
[326761831,1715329840165,-3682.90887931,0.00026882,2]
[326761832,1715329840175,-9749.7823557,0.00026882,2]
[326761833,1715329840186,-11264.3853616,0.00026882,2]
[326761834,1715329840195,-2319.7061207,0.00026882,2]
[326761835,1715329840205,-32678.3252415,0.00026882,2]
[326761836,1715329840216,-270.6,0.000269,2]
[326761837,1715329840226,-296.63,0.000269,2]
[326761839,1715329840236,-3142.58134493,0.00026912,2]
[326761840,1715329840246,-890.00232322,0.00026954,2]
[326761841,1715329840256,-1000.0,0.00026986,2]
[326761842,1715329840266,-66926.17724682,0.00027,2]
[326761843,1715329840276,-1000.0,0.00027,4]
[326761844,1715329840286,-5699.08966293,0.00027,7]
[326761845,1715329840296,-329.67249777,0.00027,30]
[326761846,1715329840311,-160.0,0.00027,2]
[326761847,1715329840321,-150.0,0.00027,2]
[326761848,1715329840331,-355.961476,0.00027,2]
[326761849,1715329840341,-150.0,0.00027,5]
[326761850,1715329840350,-523.32,0.00027123,2]
[326761851,1715329840363,-150.0,0.00027123,2]
[326761852,1715329840373,-523.32,0.00027123,2]
[326761853,1715329840382,-324.55,0.00027123,2]
[326761854,1715329840392,-522.51,0.00027123,2]
[326761855,1715329840402,-200.0,0.00027149,2]
[326761856,1715329840411,-7234.63914672,0.00027178,2]
[326761857,1715329840421,-153.17,0.00027179,120]
[326761858,1715329840431,-1000.0,0.00027197,2]
[326761859,1715329840442,-157.051014,0.00027198,14]
[326761860,1715329840455,-1070.17,0.000272,10]
[326761861,1715329840465,-10000.0,0.00027297,2]
[326761862,1715329840474,-188.35074186,0.00027297,2]
[326761863,1715329840486,-157.86532273,0.00027297,2]
[326761864,1715329840495,-10000.0,0.00027369,2]
[326761865,1715329840505,-453.0,0.00027375,2]
[326761866,1715329840515,-561.58976072,0.00027381,2]
[326761867,1715329840527,-249.32809512,0.00027395,2]
[326761868,1715329840537,-897.90628194,0.00027395,2]
[326761869,1715329840547,-157.35733175,0.00027395,2]
[326761870,1715329840558,-1361.74157649,0.00027395,2]
[326761871,1715329840567,-320.73349152,0.00027395,2]
[326761872,1715329840577,-155.21746929,0.00027395,2]
[326761873,1715329840587,-12579.74579119,0.00027395,5]
[326761874,1715329840596,-177.25288624,0.00027395,2]
[326761875,1715329840607,-489.62087404,0.00027395,2]
[326761876,1715329840617,-236.19693409,0.00027395,2]
[326761877,1715329840626,-642.97865875,0.00027395,2]
[326761878,1715329840635,-408.44946759,0.00027395,2]
[326761879,1715329840645,-39374.74004606,0.00027395,3]
[326761880,1715329840654,-656.0,0.00027397,2]
[326761881,1715329840664,-500.0,0.00027397,4]
[326761882,1715329840673,-500.0,0.00027397,4]
[326761883,1715329840683,-503.65290588,0.00027397,4]
[326761884,1715329840693,-501.59825831,0.00027397,4]
[326761885,1715329840702,-513.88868768,0.00027397,4]
[326761886,1715329840712,-511.62328736,0.00027397,4]
[326761887,1715329840721,-503.32334111,0.00027397,4]
[326761888,1715329840731,-627.17635447,0.00027397,4]
[326761889,1715329840741,-501.00829161,0.00027397,4]
[326761890,1715329840750,-389.13974932,0.00027397,4]
[326761891,1715329840759,-501.739662,0.00027397,4]
[326761893,1715329840769,-502.04122663,0.00027397,4]
[326761894,1715329840779,-503.66371566,0.00027397,4]
[326761895,1715329840788,-345.92678262,0.00027397,4]
[326761896,1715329840797,-244.72306046,0.00027397,4]
[326761897,1715329840807,-500.0,0.00027397,4]
[326761898,1715329840817,-501.09524699,0.00027397,4]
[326761899,1715329840826,-500.0,0.00027397,4]
[326761900,1715329840835,-501.77099556,0.00027397,4]
[326761901,1715329840845,-541.34988149,0.00027397,4]
[326761902,1715329840855,-348.98340887,0.00027397,4]
[326761903,1715329840865,-200.0,0.00027397,4]
[326761904,1715329840874,-594.79065282,0.00027397,4]
[326761905,1715329840884,-511.76492744,0.00027397,4]
[326761906,1715329840894,-500.0,0.00027397,4]
[326761907,1715329840904,-503.32519164,0.00027397,4]
[326761908,1715329840913,-502.13462707,0.00027397,4]
[326761909,1715329840922,-500.91733921,0.00027397,4]
[326761910,1715329840932,-515.26440467,0.00027397,4]
[326761911,1715329840941,-349.04228649,0.00027397,4]
[326761912,1715329840951,-502.22073264,0.00027397,4]
[326761913,1715329840961,-502.68780189,0.00027397,4]
[326761914,1715329840971,-338.85546724,0.00027397,4]
[326761915,1715329840980,-550.67829103,0.00027397,4]
[326761916,1715329840990,-527.96918226,0.00027397,4]
[326761917,1715329840999,-501.18393394,0.00027397,4]
[326761918,1715329841009,-500.0,0.00027397,4]
[326761919,1715329841019,-503.5778965,0.00027397,4]
[326761920,1715329841028,-503.6994468,0.00027397,4]
[326761921,1715329841038,-503.74655361,0.00027397,4]
[326761922,1715329841047,-501.55468346,0.00027397,4]
[326761923,1715329841057,-406.4458003,0.00027397,4]
[326761924,1715329841066,-530.97612706,0.00027397,4]
[326761925,1715329841076,-233.37017342,0.00027397,4]
[326761926,1715329841086,-500.0,0.00027397,4]
[326761927,1715329841097,-500.0,0.00027397,4]
[326761928,1715329841108,-501.81138455,0.00027397,4]
[326761929,1715329841117,-155.0,0.00027397,4]
[326761930,1715329841128,-739.77,0.00027397,4]
[326761931,1715329841138,-632.16,0.00027397,4]
[326761932,1715329841147,-500.0,0.00027397,4]
[326761933,1715329841157,-806.61,0.00027397,4]
[326761934,1715329841166,-500.0,0.00027397,4]
[326761935,1715329841176,-502.96687397,0.00027397,4]
[326761936,1715329841186,-336.84267454,0.00027397,4]
[326761937,1715329841195,-500.0,0.00027397,4]
[326761938,1715329841206,-500.0,0.00027397,4]
[326761939,1715329841216,-500.0,0.00027397,4]
[326761940,1715329841226,-500.0,0.00027397,4]
[326761941,1715329841235,-1221.22,0.00027397,4]
[326761942,1715329841245,-714.0,0.00027397,4]
[326761943,1715329841254,-566.83,0.00027397,4]
[326761944,1715329841264,-538.73,0.00027397,4]
[326761945,1715329841273,-855.5,0.00027397,4]
[326761946,1715329841283,-500.0,0.00027397,4]
[326761947,1715329841293,-500.0,0.00027397,4]
[326761948,1715329841302,-500.0,0.00027397,4]
[326761949,1715329841311,-500.0,0.00027397,4]
[326761950,1715329841321,-500.0,0.00027397,4]